[Event "Titled Tuesday Blitz June 8 2021"]
[White "Andreikin, Dmitry"]
[Black "Shahade, Gregory"]
[WhiteFideId "4158814"]
[BlackFideId "2009064"]
[WhiteElo "2782"]
[BlackElo "2701"]
[Result "1/2-1/2"]
[Round "03"]
[TimeControl "180+1"]
[Date "2021.06.08"]
[WhiteClock "0:00:04"]
[BlackClock "0:00:07"]

1. e4 {[%clk 0:03:00]}  e5 {[%clk 0:02:59]} 2. Nf3 {[%clk 0:03:00]}  Nc6 {[%clk 0:03:00]} 3. Bb5 {[%clk 0:02:59]}  a6 {[%clk 0:03:00]} 4. Ba4 {[%clk 0:02:59]}  Nf6 {[%clk 0:03:00]} 5. O-O {[%clk 0:02:59]}  Be7 {[%clk 0:03:01]} 6. Bxc6 {[%clk 0:02:58]}  dxc6 {[%clk 0:03:00]} 7. d3 {[%clk 0:02:59]}  Bd6 {[%clk 0:02:58]} 8. Nbd2 {[%clk 0:02:57]}  Be6 {[%clk 0:02:58]} 9. b3 {[%clk 0:02:51]}  Nd7 {[%clk 0:02:52]} 10. Nc4 {[%clk 0:02:49]}  Bxc4 {[%clk 0:02:51]} 11. bxc4 {[%clk 0:02:50]}  f6 {[%clk 0:02:45]} 12. Rb1 {[%clk 0:02:44]}  b6 {[%clk 0:02:42]} 13. d4 {[%clk 0:02:33]}  O-O {[%clk 0:02:20]} 14. c3 {[%clk 0:02:28]}  Qe7 {[%clk 0:02:14]} 15. Re1 {[%clk 0:02:27]}  Rfe8 {[%clk 0:02:14]} 16. h3 {[%clk 0:02:20]}  Nf8 {[%clk 0:02:14]} 17. Qa4 {[%clk 0:02:16]}  c5 {[%clk 0:02:07]} 18. Be3 {[%clk 0:02:10]}  Ne6 {[%clk 0:01:55]} 19. d5 {[%clk 0:02:00]}  Nf4 {[%clk 0:01:51]} 20. Bxf4 {[%clk 0:01:58]}  exf4 {[%clk 0:01:52]} 21. Re2 {[%clk 0:01:52]}  a5 {[%clk 0:01:52]} 22. Rbe1 {[%clk 0:01:49]}  Be5 {[%clk 0:01:50]} 23. Rc2 {[%clk 0:01:24]}  Rad8 {[%clk 0:01:50]} 24. Kf1 {[%clk 0:01:23]}  g5 {[%clk 0:01:46]} 25. Ke2 {[%clk 0:01:23]}  f5 {[%clk 0:01:17]} 26. Kf1 {[%clk 0:01:15]}  g4 {[%clk 0:01:13]} 27. Ng1 {[%clk 0:01:01]}  f3 {[%clk 0:01:02]} 28. gxf3 {[%clk 0:00:44]}  gxh3 {[%clk 0:00:56]} 29. Nxh3 {[%clk 0:00:44]}  Qh4 {[%clk 0:00:48]} 30. Ng1 {[%clk 0:00:44]}  Bh2 {[%clk 0:00:34]} 31. Qc6 {[%clk 0:00:30]}  Re7 {[%clk 0:00:33]} 32. Ke2 {[%clk 0:00:19]}  fxe4 {[%clk 0:00:30]} 33. Kd1 {[%clk 0:00:20]}  exf3 {[%clk 0:00:24]} 34. Nxf3 {[%clk 0:00:11]}  Rxe1+ {[%clk 0:00:22]} 35. Nxe1 {[%clk 0:00:06]}  Qe4 {[%clk 0:00:16]} 36. Qb5 {[%clk 0:00:01]}  Re8 {[%clk 0:00:13]} 37. Ng2 {[%clk 0:00:01]}  Qe7 {[%clk 0:00:05]} 38. Ne3 {[%clk 0:00:01]}  Rf8 {[%clk 0:00:05]} 39. Kc1 {[%clk 0:00:01]}  Bf4 {[%clk 0:00:06]} 40. Kb2 {[%clk 0:00:01]}  Bh6 {[%clk 0:00:05]} 41. Qc6 {[%clk 0:00:01]}  Bg7 {[%clk 0:00:05]} 42. d6 {[%clk 0:00:02]}  cxd6 {[%clk 0:00:05]} 43. Qd5+ {[%clk 0:00:02]}  Kh8 {[%clk 0:00:05]} 44. Qd3 {[%clk 0:00:03]}  Qf6 {[%clk 0:00:05]} 45. Nd5 {[%clk 0:00:03]}  Qe5 {[%clk 0:00:05]} 46. Kb3 {[%clk 0:00:03]}  Re8 {[%clk 0:00:04]} 47. Rb2 {[%clk 0:00:03]}  b5 {[%clk 0:00:04]} 48. cxb5 {[%clk 0:00:03]}  a4+ {[%clk 0:00:05]} 49. Kxa4 {[%clk 0:00:03]}  c4 {[%clk 0:00:05]} 50. Qxc4 {[%clk 0:00:04]}  Ra8+ {[%clk 0:00:05]} 51. Kb3 {[%clk 0:00:04]}  Qe1 {[%clk 0:00:05]} 52. a4 {[%clk 0:00:04]}  Qd1+ {[%clk 0:00:06]} 53. Ka3 {[%clk 0:00:03]}  Qa1+ {[%clk 0:00:05]} 54. Ra2 {[%clk 0:00:04]}  Qc1+ {[%clk 0:00:05]} 55. Kb3 {[%clk 0:00:04]}  Qb1+ {[%clk 0:00:06]} 56. Rb2 {[%clk 0:00:04]}  Qd1+ {[%clk 0:00:07]} 57. Rc2 {[%clk 0:00:04]}  Qb1+ {[%clk 0:00:06]} 58. Rb2 {[%clk 0:00:04]}  Qd1+ {[%clk 0:00:07]} 1/2-1/2


[Site "https://www.chess.com"]

[Event "Titled Tuesday Blitz June 8 2021"]
[White "Avila Pavas, Santiago"]
[Black "Demchenko, Anton"]
[WhiteFideId "4437128"]
[BlackFideId "4160258"]
[WhiteElo "2244"]
[BlackElo "2593"]
[Result "0-1"]
[Round "03"]
[TimeControl "180+1"]
[Date "2021.06.08"]
[WhiteClock "0:00:30"]
[BlackClock "0:00:53"]

1. d4 {[%clk 0:03:00]}  Nf6 {[%clk 0:03:00]} 2. Nf3 {[%clk 0:03:01]}  g6 {[%clk 0:03:00]} 3. Bg5 {[%clk 0:03:01]}  Bg7 {[%clk 0:03:01]} 4. Nbd2 {[%clk 0:03:01]}  O-O {[%clk 0:03:01]} 5. e4 {[%clk 0:03:02]}  d6 {[%clk 0:03:01]} 6. c3 {[%clk 0:03:02]}  c5 {[%clk 0:03:00]} 7. dxc5 {[%clk 0:03:03]}  dxc5 {[%clk 0:03:01]} 8. Bc4 {[%clk 0:03:03]}  Nc6 {[%clk 0:03:01]} 9. Qe2 {[%clk 0:03:03]}  h6 {[%clk 0:02:59]} 10. Bh4 {[%clk 0:03:04]}  Nh5 {[%clk 0:02:56]} 11. Qe3 {[%clk 0:03:03]}  Qc7 {[%clk 0:02:53]} 12. Qxc5 {[%clk 0:02:49]}  Nf4 {[%clk 0:02:47]} 13. O-O {[%clk 0:02:47]}  g5 {[%clk 0:02:44]} 14. Bg3 {[%clk 0:02:46]}  Bg4 {[%clk 0:02:44]} 15. Nxg5 {[%clk 0:02:14]}  b6 {[%clk 0:02:19]} 16. Bxf4 {[%clk 0:01:30]}  Qxf4 {[%clk 0:02:19]} 17. Qxc6 {[%clk 0:01:31]}  hxg5 {[%clk 0:02:19]} 18. Nb3 {[%clk 0:01:13]}  Rac8 {[%clk 0:01:59]} 19. Qb5 {[%clk 0:01:13]}  Rfd8 {[%clk 0:01:34]} 20. f3 {[%clk 0:01:07]}  Bd7 {[%clk 0:01:33]} 21. Qb4 {[%clk 0:01:02]}  Be5 {[%clk 0:01:22]} 22. g3 {[%clk 0:01:00]}  Qe3+ {[%clk 0:01:22]} 23. Kg2 {[%clk 0:00:53]}  Bd6 {[%clk 0:01:23]} 24. Bxf7+ {[%clk 0:00:42]}  Kxf7 {[%clk 0:01:20]} 25. Qd4 {[%clk 0:00:42]}  Qxd4 {[%clk 0:00:55]} 26. Nxd4 {[%clk 0:00:43]}  Rh8 {[%clk 0:00:55]} 27. Rad1 {[%clk 0:00:29]}  Bh3+ {[%clk 0:00:53]} 28. Kg1 {[%clk 0:00:29]}  Bxf1 {[%clk 0:00:53]} 29. Rxf1 {[%clk 0:00:30]}  Bc5 {[%clk 0:00:53]} 30. Kg2 {[%clk 0:00:29]}  Bxd4 {[%clk 0:00:53]} 31. cxd4 {[%clk 0:00:30]}  Rc2+ {[%clk 0:00:53]} 0-1


[Site "https://www.chess.com"]

[Event "Titled Tuesday Blitz June 8 2021"]
[White "Bellahcene, Bilel"]
[Black "Narayanan.S.L"]
[WhiteFideId "696358"]
[BlackFideId "5058422"]
[WhiteElo "2493"]
[BlackElo "2617"]
[Result "1/2-1/2"]
[Round "03"]
[TimeControl "180+1"]
[Date "2021.06.08"]
[WhiteClock "0:00:10"]
[BlackClock "0:00:14"]

1. e4 {[%clk 0:03:00]}  c6 {[%clk 0:03:00]} 2. d4 {[%clk 0:03:00]}  d5 {[%clk 0:03:00]} 3. e5 {[%clk 0:02:59]}  Bf5 {[%clk 0:02:59]} 4. h4 {[%clk 0:03:00]}  h5 {[%clk 0:02:59]} 5. Bd3 {[%clk 0:03:00]}  Bxd3 {[%clk 0:02:59]} 6. Qxd3 {[%clk 0:03:01]}  e6 {[%clk 0:02:59]} 7. Bg5 {[%clk 0:03:02]}  Qa5+ {[%clk 0:02:59]} 8. Nd2 {[%clk 0:03:02]}  Qa6 {[%clk 0:02:58]} 9. c4 {[%clk 0:03:02]}  Bb4 {[%clk 0:02:53]} 10. b3 {[%clk 0:03:00]}  Ne7 {[%clk 0:02:53]} 11. Ne2 {[%clk 0:02:59]}  Nf5 {[%clk 0:02:52]} 12. O-O {[%clk 0:02:59]}  Bxd2 {[%clk 0:02:45]} 13. Qxd2 {[%clk 0:03:00]}  dxc4 {[%clk 0:02:46]} 14. Ng3 {[%clk 0:02:57]}  Nd7 {[%clk 0:02:25]} 15. Nxf5 {[%clk 0:02:54]}  exf5 {[%clk 0:02:25]} 16. Qf4 {[%clk 0:02:18]}  cxb3 {[%clk 0:02:18]} 17. Qxf5 {[%clk 0:02:14]}  Nf8 {[%clk 0:02:05]} 18. axb3 {[%clk 0:02:12]}  Qb6 {[%clk 0:02:06]} 19. Be3 {[%clk 0:02:02]}  Qd8 {[%clk 0:02:05]} 20. Rfd1 {[%clk 0:01:44]}  Ne6 {[%clk 0:02:02]} 21. d5 {[%clk 0:01:34]}  cxd5 {[%clk 0:02:01]} 22. Bg5 {[%clk 0:01:30]}  Qd7 {[%clk 0:01:38]} 23. Qf3 {[%clk 0:01:28]}  d4 {[%clk 0:01:38]} 24. Rd2 {[%clk 0:01:24]}  a6 {[%clk 0:01:38]} 25. Rad1 {[%clk 0:01:20]}  Rc8 {[%clk 0:01:38]} 26. Qg3 {[%clk 0:01:13]}  O-O {[%clk 0:01:35]} 27. Bf6 {[%clk 0:01:09]}  g6 {[%clk 0:01:25]} 28. Rd3 {[%clk 0:01:05]}  Kh7 {[%clk 0:01:24]} 29. f4 {[%clk 0:00:57]}  Ng7 {[%clk 0:01:12]} 30. Rxd4 {[%clk 0:00:54]}  Qf5 {[%clk 0:01:12]} 31. Bxg7 {[%clk 0:00:53]}  Kxg7 {[%clk 0:01:12]} 32. Rd7 {[%clk 0:00:52]}  b5 {[%clk 0:01:05]} 33. Qg5 {[%clk 0:00:51]}  Rc3 {[%clk 0:00:44]} 34. Qxf5 {[%clk 0:00:41]}  gxf5 {[%clk 0:00:45]} 35. R1d6 {[%clk 0:00:37]}  a5 {[%clk 0:00:38]} 36. Ra6 {[%clk 0:00:31]}  Rxb3 {[%clk 0:00:28]} 37. Rxa5 {[%clk 0:00:30]}  Rb4 {[%clk 0:00:29]} 38. e6 {[%clk 0:00:27]}  Rxf4 {[%clk 0:00:19]} 39. Rxb5 {[%clk 0:00:27]}  Kf6 {[%clk 0:00:13]} 40. g3 {[%clk 0:00:11]}  Rg4 {[%clk 0:00:11]} 41. exf7 {[%clk 0:00:10]}  Rxg3+ {[%clk 0:00:09]} 42. Kh2 {[%clk 0:00:08]}  Rg4 {[%clk 0:00:09]} 43. Rb6+ {[%clk 0:00:06]}  Kg7 {[%clk 0:00:08]} 44. Kh3 {[%clk 0:00:07]}  f4 {[%clk 0:00:07]} 45. Rb5 {[%clk 0:00:05]}  Rg3+ {[%clk 0:00:07]} 46. Kh2 {[%clk 0:00:04]}  Rg6 {[%clk 0:00:06]} 47. Rf5 {[%clk 0:00:02]}  Rf6 {[%clk 0:00:05]} 48. Rxf6 {[%clk 0:00:03]}  Kxf6 {[%clk 0:00:06]} 49. Rd5 {[%clk 0:00:03]}  Rxf7 {[%clk 0:00:05]} 50. Rxh5 {[%clk 0:00:03]}  f3 {[%clk 0:00:06]} 51. Kg1 {[%clk 0:00:02]}  f2+ {[%clk 0:00:06]} 52. Kf1 {[%clk 0:00:03]}  Kg6 {[%clk 0:00:06]} 53. Rg5+ {[%clk 0:00:03]}  Kh6 {[%clk 0:00:07]} 54. Rg2 {[%clk 0:00:04]}  Rf4 {[%clk 0:00:07]} 55. Rxf2 {[%clk 0:00:05]}  Rxf2+ {[%clk 0:00:07]} 56. Kxf2 {[%clk 0:00:06]}  Kh5 {[%clk 0:00:08]} 57. Kf3 {[%clk 0:00:06]}  Kh6 {[%clk 0:00:09]} 58. Kf2 {[%clk 0:00:07]}  Kh7 {[%clk 0:00:10]} 59. h5 {[%clk 0:00:07]}  Kh8 {[%clk 0:00:11]} 60. h6 {[%clk 0:00:07]}  Kh7 {[%clk 0:00:12]} 61. Kf1 {[%clk 0:00:07]}  Kh8 {[%clk 0:00:13]} 62. Kf2 {[%clk 0:00:08]}  Kh7 {[%clk 0:00:14]} 63. Kf1 {[%clk 0:00:09]}  Kh8 {[%clk 0:00:14]} 64. Kf2 {[%clk 0:00:10]} 1/2-1/2


[Site "https://www.chess.com"]

[Event "Titled Tuesday Blitz June 8 2021"]
[White "Colas, Joshua"]
[Black "Kollars, Dmitrij"]
[WhiteFideId "2044447"]
[BlackFideId "12909572"]
[WhiteElo "2347"]
[BlackElo "2576"]
[Result "0-1"]
[Round "03"]
[TimeControl "180+1"]
[Date "2021.06.08"]
[WhiteClock "0:00:10"]
[BlackClock "0:00:40"]

1. Nf3 {[%clk 0:03:00]}  d5 {[%clk 0:02:58]} 2. c4 {[%clk 0:03:01]}  c6 {[%clk 0:02:56]} 3. g3 {[%clk 0:03:00]}  Bg4 {[%clk 0:02:55]} 4. Bg2 {[%clk 0:03:00]}  e6 {[%clk 0:02:55]} 5. O-O {[%clk 0:03:01]}  Nf6 {[%clk 0:02:54]} 6. b3 {[%clk 0:02:57]}  Nbd7 {[%clk 0:02:53]} 7. Bb2 {[%clk 0:02:57]}  Bd6 {[%clk 0:02:51]} 8. d4 {[%clk 0:02:54]}  h5 {[%clk 0:02:50]} 9. h4 {[%clk 0:02:50]}  Ne4 {[%clk 0:02:42]} 10. Nbd2 {[%clk 0:02:48]}  Qe7 {[%clk 0:02:19]} 11. Qc1 {[%clk 0:02:16]}  f5 {[%clk 0:02:08]} 12. e3 {[%clk 0:02:14]}  Bxf3 {[%clk 0:01:54]} 13. Nxf3 {[%clk 0:01:56]}  g5 {[%clk 0:01:53]} 14. cxd5 {[%clk 0:01:25]}  exd5 {[%clk 0:01:41]} 15. hxg5 {[%clk 0:01:16]}  O-O-O {[%clk 0:01:37]} 16. Nh4 {[%clk 0:01:13]}  Qxg5 {[%clk 0:01:36]} 17. Ba3 {[%clk 0:00:52]}  Bc7 {[%clk 0:01:30]} 18. Qe1 {[%clk 0:00:34]}  Rdg8 {[%clk 0:01:22]} 19. Kh1 {[%clk 0:00:28]}  Ndf6 {[%clk 0:01:05]} 20. Bh3 {[%clk 0:00:25]}  Ng4 {[%clk 0:01:01]} 21. Rc1 {[%clk 0:00:18]}  Ngxf2+ {[%clk 0:00:55]} 22. Rxf2 {[%clk 0:00:18]}  Nxg3+ {[%clk 0:00:55]} 23. Kg1 {[%clk 0:00:18]}  Qxh4 {[%clk 0:00:47]} 24. Bg2 {[%clk 0:00:17]}  Ne4 {[%clk 0:00:41]} 25. Rxf5 {[%clk 0:00:15]}  Bh2+ {[%clk 0:00:39]} 26. Kf1 {[%clk 0:00:10]}  Ng3+ {[%clk 0:00:40]} 0-1


[Site "https://www.chess.com"]

[Event "Titled Tuesday Blitz June 8 2021"]
[White "Gavrilescu, David"]
[Black "Lianes Garcia, Marcos"]
[WhiteFideId "1227190"]
[BlackFideId "32060777"]
[WhiteElo "2370"]
[BlackElo "2236"]
[Result "1-0"]
[Round "03"]
[TimeControl "180+1"]
[Date "2021.06.08"]
[WhiteClock "0:01:32"]
[BlackClock "0:01:28"]

1. e4 {[%clk 0:03:00]}  g6 {[%clk 0:03:00]} 2. d4 {[%clk 0:03:00]}  Bg7 {[%clk 0:03:00]} 3. Nf3 {[%clk 0:03:01]}  c5 {[%clk 0:03:00]} 4. c3 {[%clk 0:02:59]}  cxd4 {[%clk 0:03:01]} 5. cxd4 {[%clk 0:02:59]}  d5 {[%clk 0:03:01]} 6. e5 {[%clk 0:02:59]}  Nc6 {[%clk 0:03:01]} 7. Bb5 {[%clk 0:02:59]}  Bg4 {[%clk 0:03:00]} 8. Nbd2 {[%clk 0:02:57]}  e6 {[%clk 0:02:59]} 9. Bxc6+ {[%clk 0:02:54]}  bxc6 {[%clk 0:03:00]} 10. O-O {[%clk 0:02:55]}  Ne7 {[%clk 0:02:58]} 11. b3 {[%clk 0:02:53]}  O-O {[%clk 0:02:58]} 12. Ba3 {[%clk 0:02:53]}  f6 {[%clk 0:02:58]} 13. h3 {[%clk 0:02:52]}  Bxf3 {[%clk 0:02:54]} 14. Nxf3 {[%clk 0:02:53]}  Qd7 {[%clk 0:02:52]} 15. Re1 {[%clk 0:02:50]}  a5 {[%clk 0:02:44]} 16. Rc1 {[%clk 0:02:46]}  Rfc8 {[%clk 0:02:43]} 17. exf6 {[%clk 0:02:44]}  Bxf6 {[%clk 0:02:43]} 18. Qe2 {[%clk 0:02:45]}  Nf5 {[%clk 0:02:21]} 19. Qxe6+ {[%clk 0:02:44]}  Qxe6 {[%clk 0:02:21]} 20. Rxe6 {[%clk 0:02:45]}  Nxd4 {[%clk 0:02:18]} 21. Rxf6 {[%clk 0:02:40]}  Ne2+ {[%clk 0:02:18]} 22. Kf1 {[%clk 0:02:41]}  Nxc1 {[%clk 0:02:19]} 23. Bxc1 {[%clk 0:02:41]}  a4 {[%clk 0:02:19]} 24. Bh6 {[%clk 0:02:01]}  axb3 {[%clk 0:02:15]} 25. axb3 {[%clk 0:02:02]}  c5 {[%clk 0:02:10]} 26. Ne5 {[%clk 0:01:54]}  c4 {[%clk 0:01:59]} 27. bxc4 {[%clk 0:01:54]}  dxc4 {[%clk 0:02:00]} 28. Nc6 {[%clk 0:01:54]}  Re8 {[%clk 0:01:52]} 29. g4 {[%clk 0:01:46]}  c3 {[%clk 0:01:51]} 30. Rf3 {[%clk 0:01:41]}  Ra1+ {[%clk 0:01:31]} 31. Kg2 {[%clk 0:01:41]}  c2 {[%clk 0:01:31]} 32. Ne7+ {[%clk 0:01:32]}  Kh8 {[%clk 0:01:28]} 33. Rf7 {[%clk 0:01:32]} 1-0


[Site "https://www.chess.com"]

[Event "Titled Tuesday Blitz June 8 2021"]
[White "Henderson de La Fuente, Lance"]
[Black "Goltsev, Dmitry"]
[WhiteFideId "32096585"]
[BlackFideId "24176710"]
[WhiteElo "2280"]
[BlackElo "2366"]
[Result "1-0"]
[Round "03"]
[TimeControl "180+1"]
[Date "2021.06.08"]
[WhiteClock "0:00:15"]
[BlackClock "0:00:12"]

1. e4 {[%clk 0:03:00]}  c5 {[%clk 0:02:58]} 2. Nc3 {[%clk 0:03:00]}  e6 {[%clk 0:02:58]} 3. Nf3 {[%clk 0:02:59]}  Nc6 {[%clk 0:02:58]} 4. Bb5 {[%clk 0:02:57]}  a6 {[%clk 0:02:56]} 5. Bxc6 {[%clk 0:02:56]}  bxc6 {[%clk 0:02:57]} 6. O-O {[%clk 0:02:55]}  d5 {[%clk 0:02:57]} 7. d3 {[%clk 0:02:54]}  Nf6 {[%clk 0:02:58]} 8. Re1 {[%clk 0:02:46]}  Be7 {[%clk 0:02:54]} 9. e5 {[%clk 0:02:39]}  Nd7 {[%clk 0:02:54]} 10. Bf4 {[%clk 0:02:39]}  a5 {[%clk 0:02:53]} 11. b3 {[%clk 0:02:36]}  h6 {[%clk 0:02:51]} 12. Na4 {[%clk 0:02:20]}  Nb6 {[%clk 0:02:49]} 13. Nxb6 {[%clk 0:02:07]}  Qxb6 {[%clk 0:02:50]} 14. a4 {[%clk 0:02:01]}  g5 {[%clk 0:02:49]} 15. Be3 {[%clk 0:01:56]}  Qb4 {[%clk 0:02:46]} 16. Bd2 {[%clk 0:01:55]}  Qg4 {[%clk 0:02:39]} 17. Bc3 {[%clk 0:01:45]}  Qf5 {[%clk 0:02:29]} 18. Nd2 {[%clk 0:01:40]}  h5 {[%clk 0:02:27]} 19. Qf3 {[%clk 0:01:34]}  Qg6 {[%clk 0:02:24]} 20. Bb2 {[%clk 0:01:29]}  g4 {[%clk 0:02:23]} 21. Qe2 {[%clk 0:01:28]}  h4 {[%clk 0:02:23]} 22. Nf1 {[%clk 0:01:27]}  Kd7 {[%clk 0:02:19]} 23. Ne3 {[%clk 0:01:22]}  Rg8 {[%clk 0:02:15]} 24. Rf1 {[%clk 0:01:22]}  Ba6 {[%clk 0:02:13]} 25. f4 {[%clk 0:01:15]}  gxf3 {[%clk 0:02:03]} 26. Rxf3 {[%clk 0:01:07]}  Raf8 {[%clk 0:02:02]} 27. Raf1 {[%clk 0:01:07]}  Bg5 {[%clk 0:01:58]} 28. R3f2 {[%clk 0:01:02]}  Bd8 {[%clk 0:01:54]} 29. Bc1 {[%clk 0:00:56]}  Rg7 {[%clk 0:01:53]} 30. h3 {[%clk 0:00:55]}  f5 {[%clk 0:01:40]} 31. exf6 {[%clk 0:00:53]}  Bxf6 {[%clk 0:00:34]} 32. Ng4 {[%clk 0:00:53]}  Bd4 {[%clk 0:00:34]} 33. Be3 {[%clk 0:00:53]}  Rxf2 {[%clk 0:00:33]} 34. Rxf2 {[%clk 0:00:52]}  Kc7 {[%clk 0:00:28]} 35. Bxd4 {[%clk 0:00:50]}  cxd4 {[%clk 0:00:28]} 36. Qe5+ {[%clk 0:00:49]}  Kb7 {[%clk 0:00:27]} 37. Rf6 {[%clk 0:00:48]}  Qe8 {[%clk 0:00:25]} 38. Rxe6 {[%clk 0:00:45]}  Qf7 {[%clk 0:00:25]} 39. Rf6 {[%clk 0:00:34]}  Qe7 {[%clk 0:00:21]} 40. Re6 {[%clk 0:00:32]}  Qf7 {[%clk 0:00:18]} 41. Qd6 {[%clk 0:00:24]}  Qd7 {[%clk 0:00:15]} 42. Qf8 {[%clk 0:00:17]}  Qxe6 {[%clk 0:00:13]} 43. Qxg7+ {[%clk 0:00:17]}  Kb8 {[%clk 0:00:11]} 44. Qxd4 {[%clk 0:00:14]}  Qe1+ {[%clk 0:00:12]} 45. Kh2 {[%clk 0:00:14]}  Qg3+ {[%clk 0:00:12]} 46. Kh1 {[%clk 0:00:15]}  Kb7 {[%clk 0:00:11]} 47. Qf2 {[%clk 0:00:12]}  Qxf2 {[%clk 0:00:07]} 48. Nxf2 {[%clk 0:00:13]}  Kb6 {[%clk 0:00:08]} 49. d4 {[%clk 0:00:06]}  Be2 {[%clk 0:00:07]} 50. Kh2 {[%clk 0:00:04]}  c5 {[%clk 0:00:04]} 51. c3 {[%clk 0:00:03]}  Kc6 {[%clk 0:00:04]} 52. g3 {[%clk 0:00:02]}  c4 {[%clk 0:00:04]} 53. bxc4 {[%clk 0:00:02]}  Bxc4 {[%clk 0:00:04]} 54. gxh4 {[%clk 0:00:02]}  Kd6 {[%clk 0:00:02]} 55. h5 {[%clk 0:00:02]}  Ke6 {[%clk 0:00:02]} 56. Nd1 {[%clk 0:00:02]}  Bb3 {[%clk 0:00:01]} 57. Nb2 {[%clk 0:00:01]}  Kf5 {[%clk 0:00:02]} 58. Kg3 {[%clk 0:00:02]}  Kg5 {[%clk 0:00:02]} 59. Kf3 {[%clk 0:00:01]}  Kxh5 {[%clk 0:00:03]} 60. Kf4 {[%clk 0:00:02]}  Kh4 {[%clk 0:00:02]} 61. Ke5 {[%clk 0:00:03]}  Kxh3 {[%clk 0:00:03]} 62. Kd6 {[%clk 0:00:03]}  Kg3 {[%clk 0:00:04]} 63. Kc5 {[%clk 0:00:04]}  Kf3 {[%clk 0:00:05]} 64. Kb5 {[%clk 0:00:05]}  Ke3 {[%clk 0:00:05]} 65. Kxa5 {[%clk 0:00:05]}  Kd2 {[%clk 0:00:06]} 66. Kb4 {[%clk 0:00:06]}  Kc2 {[%clk 0:00:06]} 67. c4 {[%clk 0:00:06]}  Kxb2 {[%clk 0:00:05]} 68. c5 {[%clk 0:00:06]}  Bc4 {[%clk 0:00:04]} 69. c6 {[%clk 0:00:07]}  Ba6 {[%clk 0:00:05]} 70. Ka5 {[%clk 0:00:06]}  Bc8 {[%clk 0:00:05]} 71. Kb6 {[%clk 0:00:07]}  Kc3 {[%clk 0:00:06]} 72. a5 {[%clk 0:00:08]}  Kxd4 {[%clk 0:00:06]} 73. a6 {[%clk 0:00:08]}  Kc3 {[%clk 0:00:05]} 74. a7 {[%clk 0:00:09]}  d4 {[%clk 0:00:06]} 75. a8=Q {[%clk 0:00:10]}  Bf5 {[%clk 0:00:06]} 76. Qh8 {[%clk 0:00:09]}  Kc4 {[%clk 0:00:05]} 77. c7 {[%clk 0:00:10]}  d3 {[%clk 0:00:05]} 78. Qh6 {[%clk 0:00:09]}  Kb3 {[%clk 0:00:03]} 79. Qd2 {[%clk 0:00:08]}  Kc4 {[%clk 0:00:03]} 80. Ka7 {[%clk 0:00:09]}  Kd4 {[%clk 0:00:04]} 81. Kb8 {[%clk 0:00:10]}  Ke4 {[%clk 0:00:04]} 82. c8=Q {[%clk 0:00:09]}  Bxc8 {[%clk 0:00:05]} 83. Kxc8 {[%clk 0:00:10]}  Kd4 {[%clk 0:00:06]} 84. Kc7 {[%clk 0:00:11]}  Kc4 {[%clk 0:00:07]} 85. Kd6 {[%clk 0:00:12]}  Kd4 {[%clk 0:00:07]} 86. Ke6 {[%clk 0:00:12]}  Kc4 {[%clk 0:00:08]} 87. Ke5 {[%clk 0:00:13]}  Kc5 {[%clk 0:00:09]} 88. Qxd3 {[%clk 0:00:13]}  Kb4 {[%clk 0:00:10]} 89. Qc2 {[%clk 0:00:13]}  Ka3 {[%clk 0:00:10]} 90. Kd5 {[%clk 0:00:13]}  Kb4 {[%clk 0:00:11]} 91. Qb2+ {[%clk 0:00:14]}  Ka5 {[%clk 0:00:11]} 92. Kc5 {[%clk 0:00:15]}  Ka6 {[%clk 0:00:12]} 93. Qb6# {[%clk 0:00:15]} 1-0


[Site "https://www.chess.com"]

[Event "Titled Tuesday Blitz June 8 2021"]
[White "Ivic, Velimir"]
[Black "Vakhlamov, Igor L."]
[WhiteFideId "950122"]
[BlackFideId "24126748"]
[WhiteElo "2509"]
[BlackElo "2405"]
[Result "1-0"]
[Round "03"]
[TimeControl "180+1"]
[Date "2021.06.08"]
[WhiteClock "0:00:08"]
[BlackClock "0:00:04"]

1. e4 {[%clk 0:03:00]}  c5 {[%clk 0:02:59]} 2. Nf3 {[%clk 0:03:00]}  Nc6 {[%clk 0:03:00]} 3. b4 {[%clk 0:02:59]}  Nxb4 {[%clk 0:02:24]} 4. c3 {[%clk 0:02:57]}  Nc6 {[%clk 0:02:23]} 5. d4 {[%clk 0:02:58]}  d5 {[%clk 0:02:24]} 6. exd5 {[%clk 0:02:55]}  Qxd5 {[%clk 0:02:24]} 7. Na3 {[%clk 0:02:56]}  Bg4 {[%clk 0:02:14]} 8. Bc4 {[%clk 0:02:50]}  Qh5 {[%clk 0:02:01]} 9. Be2 {[%clk 0:02:42]}  Nf6 {[%clk 0:01:58]} 10. O-O {[%clk 0:02:25]}  e6 {[%clk 0:01:53]} 11. h3 {[%clk 0:02:25]}  Bd6 {[%clk 0:01:14]} 12. Nc4 {[%clk 0:02:10]}  Bc7 {[%clk 0:01:07]} 13. hxg4 {[%clk 0:02:07]}  Nxg4 {[%clk 0:01:08]} 14. g3 {[%clk 0:02:02]}  cxd4 {[%clk 0:01:07]} 15. cxd4 {[%clk 0:02:02]}  O-O-O {[%clk 0:01:03]} 16. Ne3 {[%clk 0:01:35]}  Nxd4 {[%clk 0:00:30]} 17. Nxg4 {[%clk 0:01:35]}  Nxf3+ {[%clk 0:00:28]} 18. Bxf3 {[%clk 0:01:35]}  Rxd1 {[%clk 0:00:28]} 19. Rxd1 {[%clk 0:01:36]}  Qf5 {[%clk 0:00:20]} 20. Kg2 {[%clk 0:01:35]}  h5 {[%clk 0:00:20]} 21. Ne3 {[%clk 0:01:34]}  Qg6 {[%clk 0:00:20]} 22. Bb2 {[%clk 0:01:26]}  h4 {[%clk 0:00:20]} 23. g4 {[%clk 0:01:27]}  h3+ {[%clk 0:00:20]} 24. Kh1 {[%clk 0:01:27]}  e5 {[%clk 0:00:17]} 25. Rac1 {[%clk 0:01:25]}  Kb8 {[%clk 0:00:17]} 26. Nf5 {[%clk 0:00:35]}  e4 {[%clk 0:00:15]} 27. Rxc7 {[%clk 0:00:19]}  exf3 {[%clk 0:00:09]} 28. Be5 {[%clk 0:00:17]}  Ka8 {[%clk 0:00:09]} 29. Rcd7 {[%clk 0:00:16]}  a5 {[%clk 0:00:07]} 30. R1d5 {[%clk 0:00:08]}  Qb6 {[%clk 0:00:05]} 31. Kh2 {[%clk 0:00:08]}  a4 {[%clk 0:00:03]} 32. Bd4 {[%clk 0:00:08]}  Qc6 {[%clk 0:00:03]} 33. Ra5+ {[%clk 0:00:08]}  Kb8 {[%clk 0:00:02]} 34. Be5+ {[%clk 0:00:08]}  Kc8 {[%clk 0:00:02]} 35. Ne7+ {[%clk 0:00:05]}  Kxd7 {[%clk 0:00:01]} 36. Nxc6 {[%clk 0:00:06]}  Kxc6 {[%clk 0:00:02]} 37. Rxa4 {[%clk 0:00:07]}  f6 {[%clk 0:00:02]} 38. Bd4 {[%clk 0:00:05]}  Kd5 {[%clk 0:00:02]} 39. Be3 {[%clk 0:00:05]}  b5 {[%clk 0:00:02]} 40. Rd4+ {[%clk 0:00:05]}  Ke5 {[%clk 0:00:02]} 41. Rb4 {[%clk 0:00:06]}  Ra8 {[%clk 0:00:03]} 42. Rxb5+ {[%clk 0:00:06]}  Ke4 {[%clk 0:00:03]} 43. Rb4+ {[%clk 0:00:06]}  Kd3 {[%clk 0:00:03]} 44. a4 {[%clk 0:00:06]}  Ke2 {[%clk 0:00:04]} 45. Kxh3 {[%clk 0:00:06]}  g5 {[%clk 0:00:04]} 46. Kg3 {[%clk 0:00:06]}  Rc8 {[%clk 0:00:03]} 47. Rb2+ {[%clk 0:00:07]}  Kf1 {[%clk 0:00:04]} 48. Kxf3 {[%clk 0:00:07]}  Rc4 {[%clk 0:00:04]} 49. Rb1+ {[%clk 0:00:07]}  Rc1 {[%clk 0:00:04]} 50. Rxc1# {[%clk 0:00:08]} 1-0


[Site "https://www.chess.com"]